Department Of Health,Entity,Date Paid,Expense Type,Supplier Name,Amount,Month
Department Of Health,United Lincolnshire Hospitals NHS Trust,01/11/2022,Blood Products,Nhs Blood And Transplant,"65,957.74",Nov-22
Department Of Health,United Lincolnshire Hospitals NHS Trust,01/11/2022,Blood Products,Nhs Blood And Transplant,"82,767.39",Nov-22
Department Of Health,United Lincolnshire Hospitals NHS Trust,01/11/2022,Blood Products,Nhs Blood And Transplant,"65,957.74",Nov-22
Department Of Health,United Lincolnshire Hospitals NHS Trust,01/11/2022,Blood Products,Nhs Blood And Transplant,"82,767.39",Nov-22
Department Of Health,United Lincolnshire Hospitals NHS Trust,01/11/2022,Payroll Services Contract,Lincolnshire Partnership Nhs Trust,"36,439.17",Nov-22
Department Of Health,United Lincolnshire Hospitals NHS Trust,01/11/2022,Gas,Totalenergies Gas & Power Limited,"33,604.53",Nov-22
Department Of Health,United Lincolnshire Hospitals NHS Trust,01/11/2022,Gas,Totalenergies Gas & Power Limited,"44,206.92",Nov-22
Department Of Health,United Lincolnshire Hospitals NHS Trust,01/11/2022,Rates,City Of Lincoln Council,"63,941.85",Nov-22
Department Of Health,United Lincolnshire Hospitals NHS Trust,01/11/2022,Rates,City Of Lincoln Council,"63,942.00",Nov-22
Department Of Health,United Lincolnshire Hospitals NHS Trust,01/11/2022,Build Maint Day To Day,Cbre Managed Services Ltd,"31,391.64",Nov-22
Department Of Health,United Lincolnshire Hospitals NHS Trust,01/11/2022,Building Works,Gelder Ltd,"30,065.10",Nov-22
Department Of Health,United Lincolnshire Hospitals NHS Trust,01/11/2022,Gas,Totalenergies Gas & Power Limited,"78,348.65",Nov-22
Department Of Health,United Lincolnshire Hospitals NHS Trust,01/11/2022,Fuel - Steam,Totalenergies Gas & Power Limited,"175,432.12",Nov-22
Department Of Health,United Lincolnshire Hospitals NHS Trust,01/11/2022,Gas,Totalenergies Gas & Power Limited,"209,373.58",Nov-22
Department Of Health,United Lincolnshire Hospitals NHS Trust,01/11/2022,Agency Nursing Registered,Presto Nursing Ltd,"84,303.46",Nov-22
Department Of Health,United Lincolnshire Hospitals NHS Trust,01/11/2022,Agency Nursing Registered,Presto Nursing Ltd,"66,734.51",Nov-22
Department Of Health,United Lincolnshire Hospitals NHS Trust,01/11/2022,Agency Nursing Registered,Presto Nursing Ltd,"66,159.46",Nov-22
Department Of Health,United Lincolnshire Hospitals NHS Trust,01/11/2022,External Contracts,Nottingham University Hosps Nhs Trust,"59,441.00",Nov-22
Department Of Health,United Lincolnshire Hospitals NHS Trust,01/11/2022,Laboratory External Tests,Northern Lincs&Goole Hospital Nhs Ft,"898,571.00",Nov-22
Department Of Health,United Lincolnshire Hospitals NHS Trust,01/11/2022,Gas,Totalenergies Gas & Power Limited,"92,946.33",Nov-22
Department Of Health,United Lincolnshire Hospitals NHS Trust,01/11/2022,Gas,Totalenergies Gas & Power Limited,"47,338.35",Nov-22
Department Of Health,United Lincolnshire Hospitals NHS Trust,01/11/2022,Gas,Totalenergies Gas & Power Limited,"77,008.35",Nov-22
Department Of Health,United Lincolnshire Hospitals NHS Trust,01/11/2022,Gas,Totalenergies Gas & Power Limited,"97,923.63",Nov-22
Department Of Health,United Lincolnshire Hospitals NHS Trust,01/11/2022,Gas,Totalenergies Gas & Power Limited,"122,420.49",Nov-22
Department Of Health,United Lincolnshire Hospitals NHS Trust,01/11/2022,Building Works - Auc Pur,Darwin Group Limited,"124,285.38",Nov-22
Department Of Health,United Lincolnshire Hospitals NHS Trust,01/11/2022,Building Works - Auc Pur,G.F. Tomlinson Building Ltd,"75,403.98",Nov-22
Department Of Health,United Lincolnshire Hospitals NHS Trust,01/11/2022,Ascribe Control: Lincoln,Janssen-Cilag Ltd,"47,692.80",Nov-22
Department Of Health,United Lincolnshire Hospitals NHS Trust,01/11/2022,Supply Chain Control<1yr,Sccl - Nhs Supply Chain (Sales),"52,143.78",Nov-22
Department Of Health,United Lincolnshire Hospitals NHS Trust,04/11/2022,Electricity,Edf Energy 1 Limited,"49,865.31",Nov-22
Department Of Health,United Lincolnshire Hospitals NHS Trust,04/11/2022,Legal Fees Employment,Nhs Resolution,"2,234,718.10",Nov-22
Department Of Health,United Lincolnshire Hospitals NHS Trust,04/11/2022,Legal Fees Employment,Nhs Resolution,"2,234,718.10",Nov-22
Department Of Health,United Lincolnshire Hospitals NHS Trust,04/11/2022,Electricity,Edf Energy 1 Limited,"91,227.53",Nov-22
Department Of Health,United Lincolnshire Hospitals NHS Trust,04/11/2022,Electricity,Edf Energy 1 Limited,"87,253.81",Nov-22
Department Of Health,United Lincolnshire Hospitals NHS Trust,08/11/2022,Outsource Service From Non Nhs,The Snoring Disorders Centre Ltd,"28,444.13",Nov-22
Department Of Health,United Lincolnshire Hospitals NHS Trust,08/11/2022,Ambulance Services,Nhs Lincolnshire Ccg,"34,720.00",Nov-22
Department Of Health,United Lincolnshire Hospitals NHS Trust,08/11/2022,Ambulance Services,Nhs Lincolnshire Ccg,"39,200.00",Nov-22
Department Of Health,United Lincolnshire Hospitals NHS Trust,08/11/2022,Ambulance Services,Nhs Lincolnshire Ccg,"27,440.00",Nov-22
Department Of Health,United Lincolnshire Hospitals NHS Trust,08/11/2022,Building Contracts,Netcall Technology Limited,"77,092.80",Nov-22
Department Of Health,United Lincolnshire Hospitals NHS Trust,08/11/2022,Outsource Service From Non Nhs,Synergy Health (Uk) Ltd,"370,778.78",Nov-22
Department Of Health,United Lincolnshire Hospitals NHS Trust,08/11/2022,Medical Record Storage,Restore Plc - (Was Magnum),"57,824.89",Nov-22
Department Of Health,United Lincolnshire Hospitals NHS Trust,08/11/2022,Computer Software/License,Insight Direct (Uk) Ltd,"84,000.00",Nov-22
Department Of Health,United Lincolnshire Hospitals NHS Trust,08/11/2022,Other Transport Costs,Brian Johnston & Co (Insurance Brokers),"76,647.60",Nov-22
Department Of Health,United Lincolnshire Hospitals NHS Trust,08/11/2022,External Contracts,Mpd Fm Limited,"31,813.33",Nov-22
Department Of Health,United Lincolnshire Hospitals NHS Trust,08/11/2022,External Contracts,Mpd Fm Limited,"33,036.79",Nov-22
Department Of Health,United Lincolnshire Hospitals NHS Trust,08/11/2022,Water & Sewage,Anglian Water Business National Ltd,"70,437.60",Nov-22
Department Of Health,United Lincolnshire Hospitals NHS Trust,08/11/2022,Gp Specialist Trainee,St Helens & Knowsley Teaching Hospitals,"250,000.00",Nov-22
Department Of Health,United Lincolnshire Hospitals NHS Trust,08/11/2022,Nhs England Income Non Block,Mediservices Healthcare Ltd,"26,320.00",Nov-22
Department Of Health,United Lincolnshire Hospitals NHS Trust,08/11/2022,Agency Nursing Registered,Group 24 Ltd T/A Nursing 24,"346,030.38",Nov-22
Department Of Health,United Lincolnshire Hospitals NHS Trust,08/11/2022,Agency Nursing Registered,Group 24 Ltd T/A Nursing 24,"398,633.22",Nov-22
Department Of Health,United Lincolnshire Hospitals NHS Trust,08/11/2022,Agency Nursing Registered,Group 24 Ltd T/A Nursing 24,"348,030.12",Nov-22
Department Of Health,United Lincolnshire Hospitals NHS Trust,08/11/2022,Laundry Contract,Berendsen Healthcare Ltd,"57,141.97",Nov-22
Department Of Health,United Lincolnshire Hospitals NHS Trust,08/11/2022,Rates,Boston Borough Council - Business Rates,"67,072.00",Nov-22
Department Of Health,United Lincolnshire Hospitals NHS Trust,08/11/2022,Fuel - Steam,Industrial Energy Services Ltd,"33,640.31",Nov-22
Department Of Health,United Lincolnshire Hospitals NHS Trust,08/11/2022,Provision Early Depart <1yr,Nhs Business Services Auth - Pension Scheme,"25,123.74",Nov-22
Department Of Health,United Lincolnshire Hospitals NHS Trust,08/11/2022,Equipment Medical - Auc Pur,Oncology Systems Ltd,"34,855.20",Nov-22
Department Of Health,United Lincolnshire Hospitals NHS Trust,08/11/2022,Ascribe Control: Boston,Oxford Health Nhs Foundation Trust,"34,452.48",Nov-22
Department Of Health,United Lincolnshire Hospitals NHS Trust,08/11/2022,Progress Housing Rents,Progress Housing Association Ltd,"39,572.84",Nov-22
Department Of Health,United Lincolnshire Hospitals NHS Trust,08/11/2022,Ascribe Control: Lincoln,Quantum Pharmaceutical Limited,"33,366.06",Nov-22
Department Of Health,United Lincolnshire Hospitals NHS Trust,08/11/2022,Ascribe Control: Lincoln,Sciensus Pharma Services Limited,"25,909.70",Nov-22
Department Of Health,United Lincolnshire Hospitals NHS Trust,08/11/2022,Equipment Medical - Auc Pur,Vyaire Uk 236 Ltd,"32,906.04",Nov-22
Department Of Health,United Lincolnshire Hospitals NHS Trust,09/11/2022,Furniture & Fittings,Ch&Co Catering Limited,"169,478.40",Nov-22
Department Of Health,United Lincolnshire Hospitals NHS Trust,14/11/2022,Electricity,Edf Energy 1 Limited,"53,138.92",Nov-22
Department Of Health,United Lincolnshire Hospitals NHS Trust,14/11/2022,Electricity,Edf Energy 1 Limited,"72,126.80",Nov-22
Department Of Health,United Lincolnshire Hospitals NHS Trust,14/11/2022,Electricity,Edf Energy 1 Limited,"76,516.90",Nov-22
Department Of Health,United Lincolnshire Hospitals NHS Trust,15/11/2022,Legal Fees Property,Capsticks Solicitors Llp,"100,000.00",Nov-22
Department Of Health,United Lincolnshire Hospitals NHS Trust,15/11/2022,Computer Hardware,Altodigital Networks Ltd,"75,707.58",Nov-22
Department Of Health,United Lincolnshire Hospitals NHS Trust,15/11/2022,Agency Nursing Registered,Agile Workforce Services Ltd,"36,004.08",Nov-22
Department Of Health,United Lincolnshire Hospitals NHS Trust,15/11/2022,Agency Nursing Registered,Agile Workforce Services Ltd,"34,383.98",Nov-22
Department Of Health,United Lincolnshire Hospitals NHS Trust,15/11/2022,Agency Nursing Registered,Agile Workforce Services Ltd,"39,769.49",Nov-22
Department Of Health,United Lincolnshire Hospitals NHS Trust,15/11/2022,Agency Nursing Registered,Agile Workforce Services Ltd,"27,506.10",Nov-22
Department Of Health,United Lincolnshire Hospitals NHS Trust,15/11/2022,Internal Audit Fees,Grant Thornton Uk Llp,"47,250.00",Nov-22
Department Of Health,United Lincolnshire Hospitals NHS Trust,15/11/2022,Medical Record Storage,Restore Plc - (Was Magnum),"61,119.32",Nov-22
Department Of Health,United Lincolnshire Hospitals NHS Trust,15/11/2022,Laundry Contract,Berendsen Healthcare Ltd,"69,296.15",Nov-22
Department Of Health,United Lincolnshire Hospitals NHS Trust,15/11/2022,Rowlands Dispensing Costs,L Rowland & Co (Retail) Ltd,"83,722.83",Nov-22
Department Of Health,United Lincolnshire Hospitals NHS Trust,15/11/2022,Pharmacy Contract,L Rowland & Co (Retail) Ltd,"1,400,927.08",Nov-22
Department Of Health,United Lincolnshire Hospitals NHS Trust,15/11/2022,Fuel - Steam,New Era Fuels Ltd,"32,363.62",Nov-22
Department Of Health,United Lincolnshire Hospitals NHS Trust,15/11/2022,Creditor Suspense,Agile Workforce Services Ltd,"35,502.37",Nov-22
Department Of Health,United Lincolnshire Hospitals NHS Trust,15/11/2022,Consultants Fees - Auc Pur,Cloud 21 Limited,"32,947.20",Nov-22
Department Of Health,United Lincolnshire Hospitals NHS Trust,15/11/2022,National Insurance - Ees,Hm Revenue & Customs,"1,970,373.25",Nov-22
Department Of Health,United Lincolnshire Hospitals NHS Trust,15/11/2022,National Insurance - Ers,Hm Revenue & Customs,"3,285,007.27",Nov-22
Department Of Health,United Lincolnshire Hospitals NHS Trust,15/11/2022,Appentice Levy - Trust,Hm Revenue & Customs,"144,186.00",Nov-22
Department Of Health,United Lincolnshire Hospitals NHS Trust,15/11/2022,Paye - Trust,Hm Revenue & Customs,"4,555,801.25",Nov-22
Department Of Health,United Lincolnshire Hospitals NHS Trust,15/11/2022,Student Loan - Trust,Hm Revenue & Customs,"87,030.00",Nov-22
Department Of Health,United Lincolnshire Hospitals NHS Trust,15/11/2022,National Ins Holt Drs- Ees,Hm Revenue & Customs,"75,267.80",Nov-22
Department Of Health,United Lincolnshire Hospitals NHS Trust,15/11/2022,National Ins Holt Drs- Ers,Hm Revenue & Customs,"224,392.88",Nov-22
Department Of Health,United Lincolnshire Hospitals NHS Trust,15/11/2022,Paye - Holt,Hm Revenue & Customs,"538,551.30",Nov-22
Department Of Health,United Lincolnshire Hospitals NHS Trust,15/11/2022,Equipment Medical - Auc Pur,Intuitive Surgical Ltd - Capital,"75,804.00",Nov-22
Department Of Health,United Lincolnshire Hospitals NHS Trust,15/11/2022,Equipment Medical - Auc Pur,Medtronic Ltd,"51,743.83",Nov-22
Department Of Health,United Lincolnshire Hospitals NHS Trust,15/11/2022,Ascribe Control: Lincoln,Quantum Pharmaceutical Limited,"40,880.50",Nov-22
Department Of Health,United Lincolnshire Hospitals NHS Trust,18/11/2022,Diag Tests Non Nhs,Medispace B.V.,"66,000.00",Nov-22
Department Of Health,United Lincolnshire Hospitals NHS Trust,18/11/2022,Diag Tests Non Nhs,Medispace B.V.,"66,700.00",Nov-22
Department Of Health,United Lincolnshire Hospitals NHS Trust,21/11/2022,Training Travel & Subsistence,Click Travel Ltd,"37,543.53",Nov-22
Department Of Health,United Lincolnshire Hospitals NHS Trust,22/11/2022,Blood Products,Nhs Blood And Transplant,"65,957.74",Nov-22
Department Of Health,United Lincolnshire Hospitals NHS Trust,22/11/2022,Blood Products,Nhs Blood And Transplant,"82,767.39",Nov-22
Department Of Health,United Lincolnshire Hospitals NHS Trust,22/11/2022,Computer Software/License,Softcat Ltd,"267,349.19",Nov-22
Department Of Health,United Lincolnshire Hospitals NHS Trust,22/11/2022,Computer Software/License,Softcat Ltd,"238,399.12",Nov-22
Department Of Health,United Lincolnshire Hospitals NHS Trust,22/11/2022,Build Maint Equip And Mats,Spectrum Healthcare (Uk) Ltd,"47,217.60",Nov-22
Department Of Health,United Lincolnshire Hospitals NHS Trust,22/11/2022,Legal Fees Employment,Nhs Resolution,"2,234,718.10",Nov-22
Department Of Health,United Lincolnshire Hospitals NHS Trust,22/11/2022,X-Ray Equipment,Inhealth Ltd,"35,520.00",Nov-22
Department Of Health,United Lincolnshire Hospitals NHS Trust,22/11/2022,Laundry Contract,Berendsen Healthcare Ltd,"72,589.45",Nov-22
Department Of Health,United Lincolnshire Hospitals NHS Trust,22/11/2022,Radiology Services,Alliance Medical Ltd,"88,200.00",Nov-22
Department Of Health,United Lincolnshire Hospitals NHS Trust,22/11/2022,External Contracts,Nottingham University Hosps Nhs Trust,"35,000.00",Nov-22
Department Of Health,United Lincolnshire Hospitals NHS Trust,22/11/2022,Laundry Contract,Berendsen Healthcare Ltd,"56,141.87",Nov-22
Department Of Health,United Lincolnshire Hospitals NHS Trust,22/11/2022,Purch Hcare From Nhs And Dhsc,North West Anglia Nhs Ft,"27,323.88",Nov-22
Department Of Health,United Lincolnshire Hospitals NHS Trust,22/11/2022,Office Equipment,North West Anglia Nhs Ft,"38,919.67",Nov-22
Department Of Health,United Lincolnshire Hospitals NHS Trust,22/11/2022,Purch Hcare From Nhs And Dhsc,North West Anglia Nhs Ft,"47,455.00",Nov-22
Department Of Health,United Lincolnshire Hospitals NHS Trust,22/11/2022,Water & Sewage,Anglian Water Business National Ltd,"27,904.52",Nov-22
Department Of Health,United Lincolnshire Hospitals NHS Trust,22/11/2022,Room Hire (Non-Ifrs 16),Nhs Property Services Ltd,"33,706.22",Nov-22
Department Of Health,United Lincolnshire Hospitals NHS Trust,22/11/2022,Computer Software/License,Specialist Computer Centres Plc,"51,335.88",Nov-22
Department Of Health,United Lincolnshire Hospitals NHS Trust,22/11/2022,Ascribe Control: Lincoln,Alexion Pharma Uk Ltd,"44,758.80",Nov-22
Department Of Health,United Lincolnshire Hospitals NHS Trust,22/11/2022,Ascribe Control: Lincoln,Alloga Uk Ltd,"50,820.00",Nov-22
Department Of Health,United Lincolnshire Hospitals NHS Trust,22/11/2022,Ascribe Control: Lincoln,Alloga Uk Ltd,"118,944.00",Nov-22
Department Of Health,United Lincolnshire Hospitals NHS Trust,22/11/2022,Ascribe Control: Lincoln,Alloga Uk Ltd,"101,952.01",Nov-22
Department Of Health,United Lincolnshire Hospitals NHS Trust,22/11/2022,Ascribe Control: Lincoln,Alloga Uk Ltd,"90,624.00",Nov-22
Department Of Health,United Lincolnshire Hospitals NHS Trust,22/11/2022,Ascribe Control: Lincoln,Biotest (Uk) Ltd,"52,830.00",Nov-22
Department Of Health,United Lincolnshire Hospitals NHS Trust,22/11/2022,Equipment Medical - Auc Pur,Db Dental Equipment Ltd,"62,442.00",Nov-22
Department Of Health,United Lincolnshire Hospitals NHS Trust,22/11/2022,Building Works - Auc Pur,Hobson And Porter Ltd,"216,000.00",Nov-22
Department Of Health,United Lincolnshire Hospitals NHS Trust,22/11/2022,Ascribe Control: Lincoln,Janssen-Cilag Ltd,"35,769.60",Nov-22
Department Of Health,United Lincolnshire Hospitals NHS Trust,22/11/2022,Ascribe Control: Lincoln,Janssen-Cilag Ltd,"35,769.60",Nov-22
Department Of Health,United Lincolnshire Hospitals NHS Trust,22/11/2022,Ascribe Control: Lincoln,Janssen-Cilag Ltd,"35,769.60",Nov-22
Department Of Health,United Lincolnshire Hospitals NHS Trust,22/11/2022,Ascribe Control: Lincoln,Janssen-Cilag Ltd,"35,769.60",Nov-22
Department Of Health,United Lincolnshire Hospitals NHS Trust,22/11/2022,Provision Pension Inj Ben <1yr,Nhs Business Services Authority Pensions,"27,265.14",Nov-22
Department Of Health,United Lincolnshire Hospitals NHS Trust,22/11/2022,Ascribe Control: Lincoln,Quantum Pharmaceutical Limited,"30,229.40",Nov-22
Department Of Health,United Lincolnshire Hospitals NHS Trust,22/11/2022,Ascribe Control: Lincoln,Quantum Pharmaceutical Limited,"32,254.20",Nov-22
Department Of Health,United Lincolnshire Hospitals NHS Trust,22/11/2022,Ascribe Control: Lincoln,Quantum Pharmaceutical Limited,"34,221.31",Nov-22
Department Of Health,United Lincolnshire Hospitals NHS Trust,22/11/2022,Ascribe Control: Lincoln,Quantum Pharmaceutical Limited,"69,752.94",Nov-22
Department Of Health,United Lincolnshire Hospitals NHS Trust,22/11/2022,Ascribe Control: Lincoln,Roche Products Ltd,"36,660.00",Nov-22
Department Of Health,United Lincolnshire Hospitals NHS Trust,23/11/2022,Electricity,Edf Energy 1 Limited,"87,260.38",Nov-22
Department Of Health,United Lincolnshire Hospitals NHS Trust,24/11/2022,Salary Finance Borrow,Salary Finance Limited-Borrow Product,"27,686.73",Nov-22
